bitfinex/quotes_SOLUSD_20220211
["timestamp","ask_amount","ask_price","bid_price","bid_amount"]
[1644616553275,15.3664,97.69,97.652,0.56061881]
[1644616553476,5.118,97.708,97.652,0.56061881]
[1644616553680,5.118,97.719,97.652,0.56061881]
[1644616554072,5.118,97.728,97.652,0.56061881]
[1644616554274,5.118,97.73,97.652,0.56061881]
[1644616554473,29.89946748,97.729,97.653,24.1054]
[1644616554876,29.89946748,97.729,97.654,0.56061881]
[1644616554877,15.3636,97.71,97.654,0.56061881]
[1644616555075,5.118,97.709,97.654,0.56061881]
[1644616557478,15.362,97.72,97.654,0.56061881]
[1644616557677,5.118,97.732,97.654,0.56061881]
[1644616557877,5.118,97.727,97.66,15.3613]
[1644616558082,5.117,97.736,97.66,15.3613]
[1644616558278,5.117,97.736,97.661,39.82507605]
[1644616558477,15.3606,97.73,97.661,40.38569486]
[1644616558778,5.117,97.729,97.661,40.38569486]
[1644616560077,15.3606,97.73,97.661,40.38569486]
[1644616560278,5.117,97.729,97.661,40.38569486]
[1644616560579,15.3615,97.72,97.661,0.56061881]
[1644616560879,5.118,97.719,97.661,0.56061881]
[1644616561079,23.233,97.718,97.661,0.56061881]
[1644616561278,30.73466791,97.718,97.661,0.56061881]
[1644616561479,30.73466791,97.718,97.604,23.8571]
[1644616561480,66.0,97.709,97.603,1.43997886]
[1644616561679,1.42709039,97.706,97.603,1.43997886]
[1644616561879,5.12,97.705,97.592,1.43997886]
[1644616562078,14.73,97.69,97.585,1.43997886]
[1644616562377,14.73,97.69,97.582,1.43997886]
[1644616562584,11.10572474,97.689,97.584,1.43997886]
[1644616562780,15.3738,97.68,97.59,15.3719]
[1644616562980,5.121,97.679,97.591,5.12]
[1644616563179,15.3738,97.68,97.585,22.5887]
[1644616563180,15.3738,97.68,97.589,1.43997886]
[1644616563379,15.3738,97.68,97.59,5.121]
[1644616563804,15.3694,97.67,97.61,15.3686]
[1644616564180,5.12,97.669,97.61,15.3686]
[1644616564380,5.12,97.669,97.588,1.43997886]
[1644616564583,5.12,97.669,97.587,1.43997886]
[1644616564881,14.64,97.68,97.587,6.56097886]
[1644616565083,5.121,97.679,97.587,1.43997886]
[1644616565281,15.3701,97.67,97.59,15.3722]
[1644616565483,15.3701,97.67,97.591,5.121]
[1644616565685,5.121,97.669,97.59,15.3722]
[1644616565985,5.121,97.679,97.591,5.121]
[1644616566184,5.121,97.668,97.586,5.121]
[1644616566384,5.121,97.678,97.592,2.38366791]
[1644616566587,5.121,97.667,97.6,15.3707]
[1644616566883,5.121,97.679,97.6,15.3707]
[1644616567085,5.12,97.688,97.601,23.4887]
[1644616567486,5.12,97.688,97.602,5.12]
[1644616568885,15.3695,97.67,97.61,15.3691]
[1644616569089,5.12,97.699,97.61,15.3691]
[1644616569689,5.12,97.704,97.61,17.75276791]
[1644616569889,28.47388276,97.703,97.611,5.119]
[1644616570086,15.3669,97.69,97.63,56.0073818]
[1644616570291,5.119,97.689,97.63,56.0073818]
[1644616571911,15.3669,97.69,97.63,56.0073818]
[1644616572111,5.119,97.689,97.63,56.0073818]
[1644616573113,15.3653,97.7,97.63,56.0073818]
[1644616573314,5.119,97.699,97.63,56.0073818]
[1644616573514,15.3653,97.7,97.631,5.119]
[1644616573713,15.1612,97.729,97.631,5.119]
[1644616573913,1.42709039,97.737,97.631,5.119]
[1644616573914,5.118,97.728,97.632,47.1655]
[1644616574114,15.3636,97.71,97.65,15.3636]
[1644616574713,5.118,97.709,97.632,47.1655]
[1644616574915,5.118,97.719,97.632,47.1655]
[1644616575114,15.365,97.7,97.631,5.119]
[1644616575516,5.119,97.699,97.631,5.119]
[1644616575714,5.119,97.709,97.631,5.119]
[1644616575916,5.119,97.709,97.63,40.6407818]
[1644616576114,15.3675,97.69,97.63,56.0069818]
[1644616576514,5.68282406,97.689,97.63,56.0069818]
[1644616577019,15.3675,97.69,97.63,56.0069818]
[1644616578316,5.119,97.689,97.63,56.0069818]
[1644616579917,15.3653,97.7,97.63,56.0069818]
[1644616580118,5.119,97.699,97.64,15.3649]
[1644616582520,5.119,97.708,97.64,15.3649]
[1644616582722,15.3637,97.71,97.64,15.3649]
[1644616583025,5.119,97.709,97.64,15.3649]
[1644616583221,15.3637,97.71,97.65,15.363]
[1644616585924,5.118,97.709,97.65,15.363]
[1644616586722,15.3622,97.72,97.65,15.363]
[1644616586927,15.3622,97.72,97.66,15.3619]
[1644616587123,5.118,97.719,97.66,15.3619]
[1644616587523,5.118,97.719,97.661,41.67998823]
[1644616590533,5.118,97.719,97.67,15.3611]
[1644616590729,15.3622,97.72,97.67,15.3611]
[1644616591829,15.3605,97.73,97.67,15.3611]
[1644616592230,5.117,97.729,97.67,15.3611]
[1644616595733,15.3605,97.73,97.67,15.3611]
[1644616596135,5.117,97.747,97.671,2.38366791]
[1644616596334,5.117,97.756,97.69,15.3575]
[1644616596537,24.7898,97.775,97.691,47.93513305]
[1644616596538,5.117,97.754,97.691,47.93513305]
[1644616596736,5.116,97.77,97.692,24.2743]
[1644616596935,5.116,97.77,97.692,26.65796791]
[1644616597138,5.116,97.774,97.693,5.116]
[1644616597437,5.116,97.774,97.7,15.3561]
[1644616597634,5.115,97.776,97.701,5.115]
[1644616597835,5.115,97.773,97.701,2.38366791]
[1644616598034,5.115,97.779,97.702,7.49866791]
[1644616598237,5.115,97.779,97.702,2.38366791]
[1644616598434,5.115,97.784,97.72,15.3525]
[1644616598637,5.115,97.778,97.721,22.6451]
[1644616598835,15.3512,97.79,97.721,22.6451]
[1644616598836,5.115,97.783,97.721,22.6451]
[1644616599034,5.114,97.789,97.721,22.6451]
[1644616599235,0.114,97.797,97.722,34.78690389]
[1644616599535,5.114,97.797,97.722,34.78690389]
[1644616599734,11.61511796,97.796,97.73,15.3501]
[1644616599934,5.114,97.795,97.73,15.3501]
[1644616600334,11.61511796,97.797,97.73,15.3501]
[1644616600533,11.61511796,97.794,97.73,15.3501]
[1644616600934,5.114,97.793,97.73,15.3501]
[1644616601138,5.114,97.797,97.73,15.3501]
[1644616602340,5.114,97.798,97.73,15.3501]
[1644616605844,15.351,97.79,97.73,15.3501]
[1644616607550,5.114,97.798,97.73,15.3501]
[1644616610853,15.348,97.81,97.731,5.114]
[1644616611054,15.348,97.81,97.75,15.3472]
[1644616611269,5.114,97.809,97.75,26.1072]
[1644616613081,15.348,97.81,97.75,26.1072]
[1644616614587,5.113,97.809,97.75,26.1072]
[1644616615690,26.68949668,97.817,97.75,26.1072]
[1644616615691,5.113,97.816,97.75,26.1072]
[1644616616291,5.113,97.819,97.75,26.1072]
[1644616617092,15.3476,97.81,97.75,26.1072]
[1644616617292,15.3476,97.81,97.75,15.3472]
[1644616617494,5.113,97.809,97.75,15.3472]
[1644616619294,15.3493,97.8,97.75,15.3472]
[1644616619595,5.113,97.817,97.74,15.3504]
[1644616619798,5.114,97.826,97.74,24.2404]
[1644616619997,5.113,97.829,97.741,23.5955]
[1644616620298,5.113,97.83,97.75,51.1504]
[1644616620496,1.42709039,97.84,97.751,24.7742]
[1644616620697,5.112,97.839,97.752,36.87498426]
[1644616621096,1.42709039,97.839,97.752,36.87498426]
[1644616621301,5.112,97.838,97.753,23.7099]
[1644616621507,1.42709039,97.84,97.753,23.7099]
[1644616621708,15.3452,97.83,97.76,15.3451]
[1644616622106,5.112,97.829,97.76,15.3451]
[1644616622304,5.112,97.829,97.73,51.1572]
[1644616622504,27.35036791,97.829,97.715,5.112]
[1644616622705,1.42709039,97.818,97.695,51.7489]
[1644616622904,6.54109039,97.817,97.722,23.0092]
[1644616623107,1.42709039,97.817,97.722,23.0092]
[1644616623309,5.114,97.816,97.723,48.33433909]
[1644616623508,1.42709039,97.815,97.723,48.33433909]
[1644616623707,15.3476,97.81,97.74,15.35]
[1644616624232,5.113,97.809,97.74,15.35]
[1644616624637,5.113,97.814,97.74,15.35]
[1644616624835,15.3507,97.79,97.723,48.33433909]
[1644616625237,5.114,97.789,97.723,48.33433909]
[1644616625436,5.114,97.807,97.723,48.33433909]
[1644616625638,1.42709039,97.805,97.723,43.22033909]
[1644616625837,1.42709039,97.795,97.723,43.22033909]
[1644616626037,15.3536,97.78,97.723,43.22033909]
[1644616626239,15.3536,97.78,97.71,15.3549]
[1644616626441,5.115,97.779,97.71,15.3549]
[1644616626844,5.115,97.788,97.71,15.3549]
[1644616627239,15.3553,97.76,97.711,37.00549812]
[1644616627640,5.115,97.759,97.711,37.00549812]
[1644616627839,5.115,97.759,97.7,15.3564]
[1644616628040,5.116,97.779,97.7,15.3564]
[1644616628443,7.49966791,97.779,97.7,15.3564]
[1644616628841,15.357,97.75,97.7,55.18303287]
[1644616629042,5.116,97.749,97.679,6.55497886]
[1644616629242,5.116,97.749,97.671,24.06257886]
[1644616629446,2.38366791,97.749,97.657,1.43997886]
[1644616629643,30.36836791,97.748,97.655,1.43997886]
[1644616629946,25.25136791,97.748,97.656,39.72655958]
[1644616630148,5.118,97.747,97.656,39.72655958]
[1644616630344,15.3616,97.73,97.656,39.72655958]
[1644616630544,5.118,97.729,97.656,39.72655958]
[1644616630943,5.118,97.739,97.656,39.72655958]
[1644616631351,15.3628,97.72,97.656,39.72655958]
[1644616631551,15.3628,97.72,97.657,28.9184]
[1644616632353,15.3628,97.72,97.66,15.362]
[1644616632558,15.3628,97.72,97.661,5.118]
[1644616633851,15.3612,97.73,97.661,5.118]
[1644616634055,5.117,97.729,97.67,15.3605]
[1644616634952,5.117,97.747,97.67,15.3605]
[1644616635152,15.3596,97.74,97.671,22.7812]
[1644616635353,5.117,97.739,97.66,15.3621]
[1644616635752,5.117,97.747,97.658,5.118]
[1644616636054,5.117,97.738,97.658,5.118]
[1644616636252,5.117,97.747,97.658,5.118]
[1644616636753,15.3623,97.73,97.658,5.118]
[1644616637751,5.118,97.729,97.657,23.0153]
[1644616638353,15.3626,97.72,97.657,23.0153]
[1644616639859,5.118,97.719,97.657,23.0153]
[1644616640059,15.3648,97.71,97.64,15.3652]
[1644616640461,5.119,97.709,97.64,15.3652]
[1644616640657,2.38366791,97.718,97.64,15.3652]
[1644616640658,5.119,97.717,97.64,15.3652]
[1644616640863,5.119,97.708,97.617,1.43997886]
[1644616641059,15.3662,97.7,97.618,5.119]
[1644616641258,26.5662,97.7,97.612,5.119]
[1644616641559,7.50366791,97.699,97.603,5.12]
[1644616641760,32.43176791,97.699,97.602,24.1495]
[1644616641957,2.38366791,97.698,97.604,38.09717466]
[1644616642161,5.12,97.697,97.604,38.09717466]
[1644616642560,15.3699,97.68,97.604,38.09717466]
[1644616642759,15.3699,97.68,97.605,5.12]
[1644616642961,5.12,97.679,97.604,38.09717466]
[1644616643761,15.3699,97.68,97.605,5.12]
[1644616644463,15.3699,97.68,97.61,15.3697]
[1644616644665,15.3678,97.69,97.611,5.12]
[1644616645064,24.9281,97.699,97.611,5.12]
[1644616646463,24.9281,97.699,97.62,15.3675]
[1644616646667,5.119,97.698,97.62,15.3675]
[1644616646865,5.119,97.698,97.604,38.09717466]
[1644616647765,15.3677,97.69,97.61,15.37]
[1644616647966,5.12,97.689,97.61,15.37]
[1644616648168,15.3677,97.69,97.611,5.12]
[1644616648568,15.3677,97.69,97.605,5.12]
[1644616649269,15.3677,97.69,97.62,15.3682]
[1644616649470,15.3677,97.69,97.621,5.12]
[1644616649871,24.9281,97.699,97.621,5.12]
[1644616650109,24.9281,97.699,97.622,22.8889]
[1644616650672,24.9281,97.699,97.63,15.3665]
[1644616651670,24.4281,97.699,97.63,15.3665]
[1644616652172,5.119,97.698,97.63,15.3665]
[1644616653375,15.3672,97.69,97.63,15.3665]
[1644616653572,5.119,97.689,97.63,15.3665]
[1644616658284,15.3672,97.69,97.63,15.3665]
[1644616659777,15.3672,97.69,97.623,5.119]
[1644616659977,5.12,97.689,97.623,5.119]
[1644616660582,15.3686,97.68,97.623,5.119]
[1644616661177,5.12,97.679,97.623,5.119]
[1644616661682,5.12,97.689,97.623,5.119]
[1644616661878,5.12,97.689,97.61,1.46397886]
[1644616662079,5.12,97.689,97.61,0.024]
[1644616662686,15.3711,97.67,97.61,0.024]
[1644616662882,5.12,97.669,97.61,0.024]
[1644616664090,15.3714,97.66,97.61,0.024]
[1644616667512,15.374,97.65,97.61,0.024]
[1644616667911,15.374,97.65,97.6,1.43997886]
[1644616668111,15.374,97.65,97.6,0.024]
[1644616669115,15.374,97.65,97.602,1.43997886]
[1644616669313,15.374,97.65,97.6,1.46397886]
[1644616669513,15.374,97.65,97.601,1.43997886]
[1644616669915,15.374,97.65,97.6,1.46397886]
[1644616671215,15.374,97.65,97.601,1.43997886]
[1644616671916,15.374,97.65,97.6,1.46397886]
[1644616674222,15.374,97.65,97.6,0.024]
[1644616675218,5.121,97.649,97.6,0.024]
[1644616677225,25.844,97.65,97.598,1.43997886]
[1644616677422,15.374,97.65,97.598,1.43997886]
[1644616680226,15.374,97.65,97.599,1.43997886]
[1644616680427,15.374,97.65,97.596,1.43997886]
[1644616681428,15.374,97.65,97.597,1.43997886]
[1644616683137,15.374,97.65,97.598,1.43997886]
[1644616683731,15.374,97.65,97.597,1.43997886]
[1644616683930,15.374,97.65,97.595,36.54041997]
[1644616683931,5.121,97.649,97.598,1.43997886]
[1644616684533,5.121,97.649,97.599,1.43997886]
[1644616685335,15.3741,97.64,97.6,1.43997886]
[1644616685534,24.6541,97.64,97.6,1.43997886]
[1644616685744,24.6541,97.64,97.58,0.024]
[1644616685935,7.50566791,97.639,97.58,0.024]
[1644616686135,32.61105856,97.638,97.55,0.024]
[1644616686338,15.384,97.63,97.55,0.024]
[1644616686534,15.384,97.63,97.53,0.024]
[1644616686535,14.73,97.62,97.53,0.024]
[1644616686734,5.124,97.619,97.51,0.024]
[1644616686934,5.124,97.619,97.49,0.024]
[1644616687234,90.298136,97.619,97.49,0.024]
[1644616687433,51.08,97.617,97.49,0.024]
[1644616687634,5.125,97.616,97.49,0.024]
[1644616687935,51.08,97.615,97.49,0.024]
[1644616688135,51.08,97.599,97.49,0.024]
[1644616688339,15.3915,97.57,97.49,0.024]
[1644616688534,5.126,97.569,97.49,0.024]
[1644616688940,14.73,97.56,97.49,0.024]
[1644616689135,56.206,97.559,97.47,0.024]
[1644616689336,15.3917,97.55,97.44,2.90395771]
[1644616689537,14.73,97.54,97.46,0.024]
[1644616689734,5.128,97.539,97.445,48.59788404]
[1644616689938,7.51166791,97.539,97.46,0.024]
[1644616690237,2.38366791,97.538,97.46,0.024]
[1644616690439,15.399,97.52,97.46,0.024]
[1644616690641,5.128,97.519,97.446,5.128]
[1644616690838,5.128,97.519,97.45,0.024]
[1644616691050,5.128,97.519,97.446,5.128]
[1644616691238,2.38366791,97.518,97.45,0.024]
[1644616691461,5.128,97.517,97.446,5.128]
[1644616691760,15.3996,97.5,97.45,0.024]
[1644616692059,14.73,97.49,97.446,5.128]
[1644616692259,14.73,97.49,97.45,0.024]
[1644616692459,5.128,97.489,97.446,5.128]
[1644616692661,15.4035,97.48,97.446,5.128]
[1644616692860,5.13,97.479,97.446,5.128]
[1644616694161,15.4035,97.48,97.44,48.27502734]
[1644616694359,15.4003,97.49,97.44,48.27502734]
[1644616694561,76.1333,97.52,97.441,5.13]
[1644616694759,24.8,97.52,97.441,5.13]
[1644616694961,24.8,97.52,97.45,0.024]
[1644616695161,24.8,97.52,97.451,5.128]
[1644616695361,24.8,97.52,97.46,0.024]
[1644616695563,5.128,97.519,97.46,0.024]
[1644616695771,5.128,97.519,97.4,0.024]
[1644616695968,24.8,97.52,97.45,0.024]
[1644616696263,24.8,97.52,97.403,45.92042425]
[1644616696463,24.8,97.52,97.46,0.024]
[1644616696663,24.8,97.52,97.41,0.024]
[1644616696864,15.3985,97.51,97.411,5.13]
[1644616697065,15.3985,97.51,97.42,0.024]
[1644616697266,15.3985,97.51,97.421,5.13]
[1644616697464,15.3985,97.51,97.43,0.024]
[1644616697666,5.13,97.509,97.43,0.024]
[1644616697865,15.3992,97.5,97.43,0.024]
[1644616698267,5.13,97.499,97.43,0.024]
[1644616699571,15.3992,97.5,97.431,5.13]
[1644616700173,20.5272,97.51,97.431,5.13]
[1644616702673,20.5272,97.51,97.43,0.024]
[1644616704878,5.13,97.51,97.43,0.024]
[1644616705078,5.128,97.529,97.431,5.128]
[1644616705678,14.73,97.53,97.43,0.024]
[1644616705878,5.128,97.528,97.43,0.024]
[1644616706080,14.73,97.53,97.43,0.024]
[1644616706081,5.128,97.529,97.43,0.024]
[1644616706280,5.128,97.529,97.431,5.128]
[1644616706482,15.3956,97.52,97.431,5.128]
[1644616706678,5.128,97.519,97.431,5.128]
[1644616707479,15.3971,97.51,97.431,5.128]
[1644616707678,5.128,97.509,97.431,5.128]
[1644616708881,5.128,97.509,97.43,0.024]
[1644616709280,15.3985,97.5,97.43,0.024]
[1644616710479,5.13,97.499,97.43,0.024]
[1644616710680,15.4001,97.49,97.43,0.024]
[1644616711082,5.13,97.489,97.43,0.024]
[1644616711483,2.38366791,97.508,97.43,0.024]
[1644616711682,15.3967,97.51,97.431,5.13]
[1644616711883,5.13,97.522,97.432,39.40856242]
[1644616712080,5.128,97.525,97.433,5.128]
[1644616712282,5.128,97.535,97.433,5.128]
[1644616713783,15.3935,97.53,97.44,15.3939]
[1644616713983,5.128,97.529,97.45,0.024]
[1644616714784,5.128,97.529,97.45,15.4165]
[1644616714981,5.128,97.529,97.46,0.024]
[1644616716982,15.3935,97.53,97.46,0.024]
[1644616717183,5.128,97.529,97.46,0.024]
[1644616718484,15.3935,97.53,97.461,5.128]
[1644616718682,15.3935,97.53,97.47,0.024]
[1644616720686,5.128,97.529,97.47,0.024]
[1644616721086,15.3912,97.55,97.47,0.024]
[1644616721286,5.128,97.549,97.47,0.024]
[1644616721486,15.3912,97.55,97.472,46.65664861]
[1644616721687,15.3912,97.55,97.48,0.024]
[1644616721889,5.127,97.549,97.48,0.024]
[1644616722085,5.127,97.549,97.48,15.4127]
[1644616722788,15.3881,97.56,97.48,15.4127]
[1644616722987,5.127,97.559,97.49,0.024]
[1644616725189,5.127,97.559,97.49,15.4111]
[1644616725391,5.127,97.559,97.491,40.06755985]
[1644616725591,5.127,97.559,97.5,0.024]
[1644616729094,15.3881,97.56,97.5,0.024]
[1644616732106,15.3864,97.57,97.5,15.4099]
[1644616732303,15.3864,97.57,97.51,0.024]
[1644616732502,5.126,97.569,97.51,0.024]
[1644616732726,5.126,97.569,97.5,15.3859]
[1644616732727,5.126,97.592,97.501,5.126]
[1644616732926,5.125,97.594,97.51,0.024]
[1644616733126,15.3832,97.59,97.51,15.4085]
[1644616733327,15.3832,97.59,97.511,45.95727897]
[1644616733528,5.125,97.589,97.511,45.95727897]
[1644616734427,5.125,97.589,97.512,23.2311]
[1644616734729,5.125,97.589,97.52,15.3825]
[1644616734927,5.125,97.589,97.521,5.125]
[1644616735227,5.125,97.589,97.52,15.3825]
[1644616737130,5.125,97.589,97.512,23.2311]
[1644616737131,15.3846,97.58,97.512,23.2311]
[1644616737333,5.125,97.579,97.51,0.024]
[1644616737531,23.38971273,97.6,97.51,0.024]
[1644616737830,2.38366791,97.584,97.51,0.024]
[1644616738031,5.125,97.583,97.51,0.024]
[1644616738230,2.38366791,97.595,97.51,0.024]
[1644616738231,15.386,97.57,97.51,0.024]
[1644616738431,41.286,97.57,97.51,0.024]
[1644616738632,2.38366791,97.569,97.51,0.024]
[1644616738834,5.126,97.568,97.51,0.024]
[1644616739031,5.126,97.568,97.49,0.024]
[1644616739230,2.38366791,97.567,97.49,0.024]
[1644616739632,5.126,97.566,97.49,0.024]
[1644616739835,15.3904,97.56,97.49,0.024]
[1644616740031,5.126,97.559,97.49,0.024]
[1644616740231,5.126,97.566,97.49,0.024]
[1644616740431,2.38366791,97.567,97.49,0.024]
[1644616741233,15.3907,97.55,97.49,0.024]
[1644616741833,7.51066791,97.549,97.49,0.024]
[1644616742032,18.38066791,97.549,97.49,0.024]
[1644616742232,14.73,97.54,97.47,0.024]
[1644616742439,5.127,97.539,97.45,0.024]
[1644616742635,15.3982,97.53,97.478,2.30684852]
[1644616742833,14.73,97.52,97.478,2.30684852]
[1644616743033,3.46850903,97.518,97.478,2.30684852]
[1644616743233,5.128,97.517,97.478,2.30684852]
[1644616743636,2.38366791,97.516,97.478,2.30684852]
[1644616743935,5.128,97.515,97.478,2.30684852]
[1644616744332,2.38366791,97.514,97.478,2.30684852]
[1644616744532,14.73,97.51,97.478,2.30684852]
[1644616744733,30.131,97.51,97.478,2.30684852]
[1644616744933,5.128,97.509,97.478,2.30684852]
[1644616745534,43.0,97.508,97.478,0.79502302]
[1644616745734,5.128,97.509,97.478,0.79502302]
[1644616746335,15.401,97.5,97.43,0.024]
[1644616746535,30.31499317,97.499,97.43,0.024]
[1644616746735,25.18499317,97.499,97.43,0.024]
[1644616746935,7.51366791,97.498,97.43,0.024]
[1644616747136,2.38366791,97.498,97.43,0.024]
[1644616747334,2.38366791,97.498,97.42,0.024]
[1644616748836,15.4,97.49,97.42,0.024]
[1644616749034,15.4,97.49,97.416,47.3758]
[1644616750339,15.402,97.48,97.417,5.13]
[1644616750537,14.73,97.51,97.42,0.024]
[1644616750743,14.73,97.51,97.421,5.13]
[1644616750938,14.73,97.51,97.42,0.024]
[1644616751136,14.73,97.51,97.421,5.13]
[1644616751438,27.93729309,97.509,97.43,0.024]
[1644616751637,15.3975,97.5,97.43,0.024]
[1644616751836,5.13,97.499,97.42,0.024]
[1644616752841,15.4015,97.48,97.42,0.024]
[1644616753136,0.71620911,97.479,97.416,47.3758]
[1644616754137,15.4015,97.48,97.416,47.3758]
[1644616755343,15.4015,97.48,97.417,5.13]
[1644616756142,15.3994,97.49,97.417,5.13]
[1644616756340,5.13,97.518,97.42,15.3989]
[1644616756541,5.128,97.523,97.421,5.128]
[1644616756740,5.128,97.547,97.43,0.024]
[1644616756940,23.3667,97.548,97.43,0.024]
[1644616757140,28.46453581,97.547,97.43,0.024]
[1644616757742,28.46453581,97.547,97.45,15.3938]
[1644616757945,28.46453581,97.547,97.46,0.024]
[1644616758346,7.87,97.548,97.46,0.024]
[1644616758545,5.127,97.547,97.461,5.127]
[1644616759743,5.127,97.547,97.48,15.3888]
[1644616759944,5.127,97.547,97.481,46.91418833]
[1644616760145,5.127,97.547,97.47,0.024]
[1644616760347,7.51066791,97.547,97.471,5.127]
[1644616760549,7.51066791,97.547,97.47,0.024]
[1644616760748,5.127,97.547,97.47,0.024]
[1644616760948,15.3911,97.54,97.47,0.024]
[1644616762449,15.3927,97.53,97.47,0.024]
[1644616763649,5.128,97.529,97.47,0.024]
[1644616764050,15.3945,97.52,97.45,0.024]
[1644616764253,15.3945,97.52,97.44,0.024]
[1644616764254,5.128,97.519,97.44,0.024]
[1644616764453,5.128,97.519,97.45,0.024]
[1644616764660,5.128,97.519,97.43,24.8286]
[1644616764661,7.51166791,97.528,97.43,24.8526]
[1644616764856,7.51166791,97.518,97.43,24.8526]
[1644616765056,21.49283108,97.499,97.43,24.8526]
[1644616765256,5.13,97.498,97.43,24.8286]
[1644616766755,15.4023,97.48,97.43,24.8286]
[1644616768055,5.13,97.479,97.43,24.8286]
[1644616768358,15.4023,97.48,97.43,24.8286]
[1644616768559,21.49283108,97.499,97.43,24.8286]
[1644616768757,15.3991,97.49,97.43,24.8286]
[1644616770563,15.3991,97.49,97.43,40.2273]
[1644616770763,15.3974,97.5,97.43,40.2273]
[1644616770968,5.13,97.499,97.43,40.2513]
[1644616771364,5.13,97.499,97.43,40.2273]
[1644616772366,15.3956,97.51,97.43,40.2273]
[1644616772564,5.128,97.509,97.43,40.2513]
[1644616773984,5.128,97.509,97.44,15.3962]
[1644616775186,5.128,97.509,97.441,5.128]
[1644616775885,27.38656096,97.508,97.441,5.128]
[1644616776089,5.128,97.507,97.44,15.3962]
[1644616777492,27.38656096,97.508,97.44,15.3962]
[1644616777990,5.128,97.519,97.44,15.3962]
[1644616778989,25.3746486,97.518,97.44,15.3962]
[1644616779192,5.128,97.517,97.441,5.128]
[1644616779389,5.128,97.517,97.46,15.393]
[1644616779593,5.128,97.517,97.461,43.8270214]
[1644616781292,5.128,97.517,97.47,15.3927]
[1644616782204,5.128,97.517,97.45,0.024]
[1644616782403,5.128,97.517,97.46,15.3941]
[1644616782604,15.3951,97.51,97.46,15.3941]
[1644616782806,5.128,97.509,97.46,15.3941]
[1644616784205,15.3951,97.51,97.46,15.3941]
[1644616784706,5.128,97.509,97.46,15.3941]
[1644616785147,5.128,97.517,97.46,15.3941]
[1644616786710,15.3961,97.51,97.46,15.3941]
[1644616790112,5.128,97.509,97.46,15.3941]
[1644616790311,3.2788536,97.499,97.46,15.3941]
[1644616794421,3.2788536,97.499,97.45,15.3967]
[1644616794619,5.128,97.498,97.442,24.4882]
[1644616796023,15.398,97.49,97.442,24.4882]
[1644616796221,5.128,97.489,97.442,24.4882]
[1644616796429,5.128,97.497,97.442,24.4882]
[1644616796627,5.128,97.498,97.442,24.4882]
[1644616797331,15.3998,97.48,97.442,24.4882]
[1644616797528,3.2788536,97.499,97.442,24.4882]
[1644616798534,3.2788536,97.499,97.45,15.3972]
[1644616799138,15.3973,97.5,97.45,15.3972]
[1644616799338,51.3208,97.53,97.451,5.128]
[1644616799538,15.3952,97.51,97.47,15.3938]
[1644616800554,5.128,97.509,97.46,15.3953]